Cogmind - Beta 17.1 @@@ ROGUE MODE // 2026.08.26 @ 13:57:07 Player: Cmdr.Laserstrahl Result: Destroyed by as-04695 with Assembled Heavy Rifle Performance ------------- Evolutions (0) 0 Regions Visited (4) 800 Robots Destroyed (18) 90 Value Destroyed (227) 227 Prototype IDs (23) 460 Alien Tech Used (0) 0 Bonus (300) 300 TOTAL SCORE: 1877 Bonus ------- Aligned with FarCom 300 Cogmind --------- Core Integrity 0/250 Matter 280/300 Energy 9/100 System Corruption 8% Temperature Cool (0) Movement Core (50) Location -9/Mines Parts ------- > --- POWER (1) -------- (None) > --- PROPULSION (2) --- (None) > --- UTILITY (2) ------ Seismic Detector > --- WEAPON (2) ------- Light Assault Rifle > --- INVENTORY (5) ---- Light Treads Wheel Wheel Large Battery (200) Peak State ------------ > --- POWER ------------ (None) > --- PROPULSION ------- Flight Unit Flight Unit > --- UTILITY ---------- Seismic Detector Cloak of Protection > --- WEAPON ----------- Light Assault Rifle Light Assault Rifle > --- INVENTORY -------- Light Treads Light Treads Wheel Wheel Large Battery [Rating: 13] Favorites ----------- Power Ion Engine Engine Ion Engine Propulsion Compact Wheel Wheel Compact Wheel Flight Unit Flight Unit Utility Seismic Detector Device Seismic Detector Storage High-capacity Storage Unit Weapon Light Assault Rifle Energy Gun Small Laser Ballistic Gun Light Assault Rifle Build | -11 -10 -10 -10 -9 ------- Run | Yrd Mat Min Exi Min Slots Evolved . | . . . . . Power . | . . . . . Propulsion . | . . . . . Utility . | . . . . . Weapon . | . . . . . Parts Attached 15 | 7 2 1 . 5 Power 2 | 1 1 . . . Engine 2 | 1 1 . . . Core . | . . . . . Reactor . | . . . . . Propulsion 4 | 2 . . . 2 Treads . | . . . . . Leg . | . . . . . Wheel 2 | 2 . . . . Hover . | . . . . . Flight 2 | . . . . 2 Utility 4 | 2 1 . . 1 Device 2 | 1 . . . 1 Storage 2 | 1 1 . . . Processor . | . . . . . Hackware . | . . . . . Protection . | . . . . . Artifact . | . . . . . Weapon 5 | 2 . 1 . 2 Energy Gun 1 | 1 . . . . Energy Cannon . | . . . . . Ballistic Gun 4 | 1 . 1 . 2 Ballistic Cannon . | . . . . . Launcher . | . . . . . Special Weapon . | . . . . . Impact Weapon . | . . . . . Slashing Weapon . | . . . . . Piercing Weapon . | . . . . . Special Melee Weapon . | . . . . . Unidentified Prototypes . | . . . . . Parts Lost 6 | . . . . 6 Power 1 | . . . . 1 Propulsion 3 | . . . . 3 Utility . | . . . . . Weapon 2 | . . . . 2 Highest Loss Streak 6 | . . . . 6 To Critical Strikes . | . . . . . Average Backups 12 | 4 9 16 16 12 Power . | . 1 1 1 . Propulsion 5 | 2 5 6 6 5 Utility 2 | . 1 3 3 3 Weapon 3 | 1 2 6 6 3 Tool/Special . | . . . . . Unused Backups 16 | . 1 . . 15 Power 2 | . 1 . . 1 Propulsion 6 | . . . . 6 Utility 3 | . . . . 3 Weapon 5 | . . . . 5 Tool/Special . | . . . . . Average Slot Usage (%) 97 | . 100 100 100 82 Engine 13 | . 14 14 14 7 Wheel 27 | . 28 28 28 21 Device 14 | . 14 14 14 14 Storage 13 | . 14 14 14 8 Energy Gun 13 | . 14 14 14 8 Ballistic Gun 14 | . 14 14 14 19 Peak Build Rating 13 | 8 8 8 9 13 Average Rating 7 | 4 8 8 8 7 On Entrance 6 | . 8 8 8 9 Avg Prop Armor Cover (%) . | . . . . . Naked Turns . | . . . . . Heaviest Build 48 | 13 48 48 48 48 Greatest Support 26 | 26 26 26 26 26 Greatest Overweight (x) 1 | . 1 1 1 1 Average Overweight (x) . | . . 1 1 . Largest Inventory Capacity 20 | 8 20 20 20 20 Average Capacity 16 | 7 14 20 20 14 Most Carried 17 | 8 16 16 17 17 Average Carried 12 | 4 9 15 16 12 Final Capacity 20 | 8 20 20 20 5 Final Carried 17 | 8 16 16 17 4 Class Distribution -------------------- 100% | Mutant Dominant Class ---------------- Mutant | -10/Materials Mutant | -10/Mines Mutant | -10/Exiles Mutant | -9/Mines Resources | -11 -10 -10 -10 -9 ----------- Run | Yrd Mat Min Exi Min Matter Collected 369 | 273 48 19 . 29 Remotely . | . . . . . Salvage Created 597 | 100 393 38 . 66 Parts 48 | 7 27 7 . 7 Haulers Intercepted 2 | . 2 . . . Recyclers Shooed 4 | . 1 3 . . Parts Field Recycled . | . . . . . Retrieved Matter . | . . . . . Parts Self-Destructed . | . . . . . Prevented . | . . . . . Parts Restored . | . . . . . Kills | -11 -10 -10 -10 -9 ------- Run | Yrd Mat Min Exi Min Combat Hostiles Destroyed 11 | . 4 3 . 4 Guns 11 | . 4 3 . 4 Classes Destroyed 7 | 2 3 1 . 1 Worker 2 | . 2 . . . Tunneler 1 | 1 . . . . Hauler 2 | . 2 . . . Recycler 3 | 1 2 . . . Swarmer 6 | . . 3 . 3 Grunt 4 | . 4 . . . Assembled 1 | . . . . 1 Best Kill Streak 6 | 2 6 3 . 3 Combat Bots Only 3 | . 3 3 . 3 Max Kills in Single Turn 2 | 1 2 1 . 1 Gunslinging 1 | . 1 . . . Exploded . | . . . . . Melee . | . . . . . Uniques/NPCs Destroyed . | . . . . . Combat | -11 -10 -10 -10 -9 -------- Run | Yrd Mat Min Exi Min Hostile Shots Fired 93 | . 26 18 . 49 Missed 25 | . 11 5 . 9 Hits 68 | . 15 13 . 40 Melee 8 | . . . . 8 Projectile 60 | . 15 13 . 32 Damage Taken 847 | . 159 97 . 591 Core 259 | . 43 15 . 201 Absorbed by Shields . | . . . . . Core Remaining (%) 100 | 100 . . . . Volleys Fired 55 | 3 28 12 . 12 Largest 2 | 2 2 2 . 2 Hottest 60 | 60 60 60 . 60 Shots Fired 110 | 6 56 24 . 24 Gun 110 | 6 56 24 . 24 Cannon . | . . . . . Launcher . | . . . . . Special . | . . . . . Kinetic 60 | 3 28 12 . 17 Thermal 50 | 3 28 12 . 7 Explosive . | . . . . . Electromagnetic . | . . . . . Robot Hit Streak 7 | 4 7 3 . 5 Robot Miss Streak 6 | . 3 6 . 3 Penetration Max . | . . . . . Secondary Targets 3 | . 1 1 . 1 Max Gunslinging Chain 1 | . 1 1 . 1 Shots Hit Robots 64 | 4 34 12 . 14 Core Hits 34 | 3 19 5 . 7 Critical Kills . | . . . . . Critical Parts Destroyed . | . . . . . Critical Strikes . | . . . . . Melee Attacks . | . . . . . Impact . | . . . . . Slashing . | . . . . . Piercing . | . . . . . Sneak Attacks . | . . . . . Combat Hostiles . | . . . . . Follow-up Attacks . | . . . . . Damage Inflicted 627 | 37 329 131 . 130 Guns 627 | 37 329 131 . 130 Cannons . | . . . . . Explosions . | . . . . . Melee . | . . . . . Ramming . | . . . . . Kinetic 262 | 6 138 42 . 76 Thermal 365 | 31 191 89 . 54 Explosive . | . . . . . Electromagnetic . | . . . . . Impact . | . . . . . Slashing . | . . . . . Piercing . | . . . . . Highest Corruption 8 | . . . . 8 Average Corruption 7 | . . . . 7 Corruption Purged . | . . . . . Corruption Blocked . | . . . . . Effects 1 | . . . . 1 Data Loss (major) 1 | . . . . 1 Overload Shots . | . . . . . Overflow Damage . | . . . . . Projectiles . | . . . . . Explosions . | . . . . . Melee . | . . . . . Knockbacks . | . . . . . Impact . | . . . . . Kinetic . | . . . . . Secondary . | . . . . . Self-Inflicted Damage . | . . . . . Shots . | . . . . . Rammed . | . . . . . Targets Rammed . | . . . . . Kicked . | . . . . . Crushed . | . . . . . Highest Temperature 64 | 20 64 40 . 40 Average Temperature 22 | 15 23 20 . 25 Received Heat Transfer 110 | . 90 . . 20 Siege Activations . | . . . . . Martial Activations . | . . . . . Shielding Activations . | . . . . . Robots Disrupted . | . . . . . Combat Hostiles . | . . . . . Robots Corrupted . | . . . . . Combat Hostiles . | . . . . . Parts Fried . | . . . . . Impact Corruptions . | . . . . . Robots Melted . | . . . . . Combat Hostiles . | . . . . . Parts Melted . | . . . . . Heat Transferred 850 | 75 450 200 . 125 Parts Sabotaged . | . . . . . Parts Stolen . | . . . . . Parts Stripped . | . . . . . Power Chain Reactions . | . . . . . Alert | -11 -10 -10 -10 -9 ------- Run | Yrd Mat Min Exi Min Maximum Alert Level . | . . . . . Low Security (%) 100 | 100 100 100 . 100 Level 1 . | . . . . . Level 2 . | . . . . . Level 3 . | . . . . . Level 4 . | . . . . . Level 5 . | . . . . . High Security . | . . . . . Max Security . | . . . . . Peak Influence 84 | 5 84 76 . 71 Initial 16 | . . 16 . . Average 32 | 1 30 59 . 31 Influence Increases 325 | 10 134 100 . 81 Destroy 0b10 Robot/C 200 | . 80 60 . 60 Destroy 0b10 Robot/NC 40 | 10 30 . . . Destroy Leader 34 | . 14 10 . 10 Successful Hack 21 | . 10 . . 11 Lose Combat Pursuer 30 | . . 30 . . Influence Decreases 325 | 10 90 78 66 81 Entered New Map 94 | . . 28 66 . Time Decay 190 | 10 90 50 . 40 Lost Part 41 | . . . . 41 Squads Dispatched 2 | . 2 . . . Investigation 1 | . 1 . . . Extermination . | . . . . . Reinforcement 1 | . 1 . . . Assault . | . . . . . Garrison . | . . . . . Intercept . | . . . . . Searches Triggered . | . . . . . Construction Impeded . | . . . . . Haulers Reinforced . | . . . . . Active Scanning Responses . | . . . . . Cargo Convoy Interrupts . | . . . . . Stealth | -11 -10 -10 -10 -9 --------- Run | Yrd Mat Min Exi Min Distress Signals 1 | . 1 . . . Communications Jammed . | . . . . . Distress Signals . | . . . . . Times Spotted 47 | . 5 5 . 37 Peak Tracking Total 19 | . 4 2 . 19 Tactical Retreats 3 | . . 1 . 2 Traps | -11 -10 -10 -10 -9 ------- Run | Yrd Mat Min Exi Min Traps Triggered 1 | . 1 . . . Indirectly . | . . . . . Trap Hack Attempts . | . . . . . Triggered . | . . . . . Disarmed . | . . . . . Reprogrammed . | . . . . . Reused . | . . . . . Traps Extracted . | . . . . . Installed . | . . . . . Triggered . | . . . . . Machines | -11 -10 -10 -10 -9 ---------- Run | Yrd Mat Min Exi Min Machines Disabled . | . . . . . Max in Single Turn . | . . . . . Machines Repaired . | . . . . . Machines Dismantled . | . . . . . Machines Sabotaged . | . . . . . Overloaded Fab Kills . | . . . . . Hacking | -11 -10 -10 -10 -9 --------- Run | Yrd Mat Min Exi Min Machines Accessed 3 | . 1 . 1 1 Terminals 2 | . 1 . . 1 Fabricators . | . . . . . Repair Stations . | . . . . . Recycling Units . | . . . . . Scanalyzers . | . . . . . Garrison Access . | . . . . . Total Hacks 6 | . 2 . 1 3 Successful 6 | . 2 . 1 3 Failed . | . . . . . Catastrophic . | . . . . . Database Lockouts . | . . . . . Manual 4 | . 1 . 1 2 Terminals 5 | . 2 . . 3 Fabricators . | . . . . . Repair Stations . | . . . . . Recycling Units . | . . . . . Scanalyzers . | . . . . . Garrison Access . | . . . . . Terminal Hacks 4 | . 1 . 1 2 Record 1 | . . . . 1 Robot Analysis 1 | . 1 . . . Zone Layout 1 | . . . . 1 Proto ID Catalog 1 | . . . 1 . Fabricator Hacks . | . . . . . Repair Station Hacks . | . . . . . Recycling Unit Hacks . | . . . . . Scanalyzer . | . . . . . Garrison Access Hacks . | . . . . . Unauthorized Hacks 2 | . 1 . . 1 Terminals 2 | . 1 . . 1 Botnet 2 | . 1 . . 1 Fabricators . | . . . . . Repair Stations . | . . . . . Recycling Units . | . . . . . Scanalyzers . | . . . . . Garrison Access . | . . . . . Data Cores Recovered . | . . . . . Used . | . . . . . Hacking Detections 1 | . 1 . . . Full Trace Events . | . . . . . Feedback Events . | . . . . . Feedback Blocked . | . . . . . Robot Schematics Acquired . | . . . . . Robots Built . | . . . . . Authchips . | . . . . . Time . | . . . . . Total Robot Build Rating . | . . . . . Part Schematics Acquired . | . . . . . Parts Built . | . . . . . Authchips . | . . . . . Time . | . . . . . Total Part Build Rating . | . . . . . Part Studies Acquired . | . . . . . Parts Repaired . | . . . . . Time . | . . . . . Parts Recycled . | . . . . . Recycled Matter . | . . . . . Retrieved Matter . | . . . . . Retrieved Components . | . . . . . Parts Scanalyzed . | . . . . . Part Schematics Acquired . | . . . . . Parts Damaged . | . . . . . Bothacking | -11 -10 -10 -10 -9 ------------ Run | Yrd Mat Min Exi Min Used RIF Installer . | . . . . . Robots Hacked . | . . . . . Non-combat . | . . . . . Combat . | . . . . . Robot Hacks Applied . | . . . . . Relay Couplers Released . | . . . . . Fabnet Peak Effective % . | . . . . . Robots Rewired . | . . . . . Allies Hacked . | . . . . . Hacks Repelled . | . . . . . Allies | -11 -10 -10 -10 -9 -------- Run | Yrd Mat Min Exi Min Total Allies . | . . . . . Largest Group . | . . . . . Highest-Rated Group . | . . . . . Highest-Rated Ally . | . . . . . Total Orders . | . . . . . Ally Attacks . | . . . . . Total Damage . | . . . . . Kills . | . . . . . Allies Corrupted . | . . . . . Allies Melted . | . . . . . Intel | -11 -10 -10 -10 -9 ------- Run | Yrd Mat Min Exi Min Active Infowar (turns) 681 | 7 248 104 232 90 Seismic 681 | 7 248 104 232 90 Cloaking 2 | . . . . 2 Robot Analysis Total 1 | . 1 . . . Derelict Logs Recovered . | . . . . . Drone Launches . | . . . . . Drone Recoveries . | . . . . . Exploration | -11 -10 -10 -10 -9 ------------- Run | Yrd Mat Min Exi Min Turns Passed 740 | 66 248 104 232 90 Spaces Moved 543 | 46 154 60 221 62 Core 22 | 12 . . . 10 Treads . | . . . . . Legs . | . . . . . Wheels 504 | 34 154 60 221 35 Hover . | . . . . . Flight 17 | . . . . 17 Fastest Speed 37 | 50 90 105 105 37 Average Speed 97 | 79 98 105 105 77 Slowest Speed 105 | 90 105 105 105 105 Overloaded Moves . | . . . . . Propulsion Burnouts . | . . . . . Robots Hopped 2 | . . . . 2 Potential Cave-ins . | . . . . . Cave-ins Triggered . | . . . . . Exploration Rate (%) 28 | 4 33 23 64 17 Regions Visited 4 Branch Regions 3 Pre-discovered Areas . | . . . . . Known Exits Taken . | . . . . . Unknown Exits Taken 4 | 1 1 1 1 . Scrap Searched . | . . . . . Spaces Dug . | . . . . . Terrain Destroyed . | . . . . . Melee . | . . . . . Projectile . | . . . . . AOE . | . . . . . Terrain Rammed . | . . . . . Walls Destroyed . | . . . . . Machines Disabled . | . . . . . Actions | -11 -10 -10 -10 -9 --------- Run | Yrd Mat Min Exi Min Total 652 | 69 201 79 221 82 Wait 10 | . 5 5 . . Move 535 | 45 153 59 220 58 Hop 2 | . . . . 2 Pick Up 26 | 14 10 1 1 . Fast Attach 4 | 1 . . . 3 Attach 7 | 6 . . . 1 Detach . | . . . . . Swap 4 | . 2 1 . 1 Drop 9 | . 3 1 . 5 Fire 55 | 3 28 12 . 12 Melee . | . . . . . Ram . | . . . . . Kick . | . . . . . Crush . | . . . . . Escape Stasis . | . . . . . Rewire . | . . . . . Trap . | . . . . . Miscellaneous . | . . . . . Route ------- -11/Scrapyard -10/Materials (discovered 2 exits: [*Mat] / [*Min]) -10/Mines -10/Exiles -9/Mines History --------- Turn | Location | Event 41 | -11/Scrapyard | Discovered new exit (range 15) 67 | -11/Scrapyard | Entered Materials 68 | -10/Materials | Met a group of wandering Federalists 91 | -10/Materials | Discovered new exit (range 10) 265 | -10/Materials | Discovered new exit (range 14) 307 | -10/Materials | Build established: Mutant 315 | -10/Materials | Entered Mines 415 | -10/Mines | Deemed a non-threat by the Exiles lab entrance 415 | -10/Mines | Discovered new exit (range 5) 419 | -10/Mines | Entered Exiles 445 | -10/Exiles | Met 8R-AWN 463 | -10/Exiles | Met EX-HEX 495 | -10/Exiles | Met EX-BIN 507 | -10/Exiles | Aligned with FarCom system 508 | -10/Exiles | Given EX-Vault access code 533 | -10/Exiles | Opened EX-Vault 539 | -10/Exiles | Found Cloak of Protection 560 | -10/Exiles | Warned to stay clear of 0b10 Research branches 577 | -10/Exiles | Exiles lab attacked by MAIN.C 643 | -10/Exiles | Discovered new exit (range 10) 651 | -10/Exiles | Left Exiles lab with Cloak of Protection 651 | -10/Exiles | Entered Mines 691 | -9/Mines | Assembled infested the area 696 | -9/Mines | Assisted by a Guerilla fighting off Assembled 707 | -9/Mines | Core integrity fell below 50% 732 | -9/Mines | Core integrity fell below 20% 741 | -9/Mines | Destroyed by as-04695 with Assembled Heavy Rifle Last Messages --------------- 00710_ Wheel destroyed. 00710_ System corrupted by crushing effect (+3). 00710_ Knocked back. 00719_ as-99498 destroyed. 00721_ Com. Wheel destroyed. 00725_ System corrupted: Substantial component data lost. 00726_ Acquired Flight Unit. 00728_ Acquired 20 matter. 00729_ Acquired Flight Unit. 00731_ Dropped Lgt. Assault Rifle. 00737_ Acquired Cloak of Protection. The Cloak of Protection is an example of a part that consumes a large amount of energy each turn, consider turning it off when not vital. 00738_ Flight Unit destroyed. 00738_ Dropped Flight Unit. 00739_ Dropped Cloak of Protection. 00740_ Lgt. Assault Rifle destroyed. 00740_ Dropped Lgt. Treads. Map ----- +----------------------------------------------------+ | | | | | | | | | | | ????????????????????????????????????????????? | | ????#############???????????????????????????? | | ????# #??#########????????????????? | | ????# """ #??# #????????????????? | | ????# """ #### """ #????????????????? | | ????# """ =% %[ """ #????????????????? | | ????# [ =[ """ #????????????????? | | ????# """ """ #### #????????????????? | | ????# """ """ #?## #????????????????? | | ????# """ """ #?#T #????????????????? | | ????# #?## #????????????????? | | ????# #??##### ###????????????????? | | ????######### ######### #??????????????????? | | ????????????# *[ % #??????????????????? | | ????????????# =[=######??????????????????? | | ????????????######!!#???????????????????????? | | ?????????????????#%=#???????????????????????? | | ???????????####??#!!#???????????????????????? | | ??????????## ##?#!a#???????????????????????? | | ??????????# ###[]##??????????????????????? | | ??????????# ##a[@####???????????????????? | | ??????????## aaa*= ######??????????????? | | ??????????## a a% ##?????????????? | | ????????### = #?????????????? | | ???????## * !%= #?????????????? | | ???????# % #?????????????? | | ??????? % ### ##?????????????? | | ??????? #??#; ##??????????????? | | ??????? #???#;; a ##???????????????? | | ????????< ?????## #????????????????? | | ????????# ????????# ????????????????? | | ????????? # ?????????# #???????????????? | | ???????????##???????????## #???????????????? | | ??????????????????????????$ ????????????????? | | ????????????????????????????????????????????? | | ????????????????????????????????????????????? | | ????????????????????????????????????????????? | | ????????????????????????????????????????????? | | ????????????????????????????????????????????? | | ????????????????????????????????????????????? | | ????????????????????????????????????????????? | | ????????????????????????????????????????????? | | ????????????????????????????????????????????? | | ????????????????????????????????????????????? | | ????????????????????????????????????????????? | +----------------------------------------------------+ Best States ------------- Heat Dissipation 25 Energy Generation 10 Energy Capacity 250 Matter Stores 300 Matter Capacity 300 Sight Range 16 Terrain Scan Density 10 Evasion (%) 62 Item Schematics ----------------- None Robot Schematics ------------------ None Fabricated ------------ Nothing Repaired ---------- Nothing Studied --------- None Alien Tech Used ----------------- None Achievements -------------- None Challenges ------------ None Game ------ Seed LatentShadeExtrapolator Manual? 0 Play Time 00:18:17 Cumulative 453.0 hours Start 2026.08.26 @ 13:35:39 End 2026.08.26 @ 13:57:07 Sessions 1 Manual Loads 0 Difficulty Rogue Special Mode None Game No. 181 Rogue 178 Adventurer 3 Explorer 0 Win Type - Total 0 Types 0/0/0/0/0/0/0/0/0/0 Lore% 34 Gallery% 50 Achievement% 34 Wizard Run 0 Options --------- Layout 2 ASCII 0 Keyboard 0 Movement Mouse Keybinds 0 Fullscreen 1 Font 24/Smallcaps Map View 50x44 Zoom Use 0% Tactical HUD 1 Map Filters NONE Filters NONE Steam 1 RUN: 46ca9aa3-10cf-4707-b47f-433a6409b538